fUSD/lending_fUSD_20250720
["ID","MTS","AMOUNT","RATE_DAILY","PERIOD"]
[373448245,1753013477138,-460.46823042,0.00019506,2]
[373448246,1753013477148,-480.0,0.00019506,2]
[373448247,1753013477158,-784.15,0.00019506,2]
[373448248,1753013477167,-480.0,0.00019506,2]
[373448249,1753013477176,-480.0,0.00019506,2]
[373448250,1753013477186,-480.0,0.00019506,2]
[373448251,1753013477195,-508.41,0.00019506,2]
[373448252,1753013477205,-577.83,0.00019506,2]
[373448253,1753013477215,-480.0,0.00019506,2]
[373448254,1753013477225,-480.0,0.00019506,2]
[373448255,1753013477238,-480.0,0.00019506,2]
[373448256,1753013477247,-480.0,0.00019506,2]
[373448257,1753013477256,-772.81,0.00019506,2]
[373448258,1753013477267,-480.0,0.00019506,2]
[373448259,1753013477276,-480.0,0.00019506,2]
[373448260,1753013477285,-480.0,0.00019506,2]
[373448261,1753013477298,-480.0,0.00019506,2]
[373448262,1753013477308,-480.0,0.00019506,2]
[373448263,1753013477318,-480.0,0.00019506,2]
[373448264,1753013477328,-480.0,0.00019506,2]
[373448265,1753013477338,-480.0,0.00019506,2]
[373448266,1753013477349,-480.0,0.00019506,2]
[373448267,1753013477359,-830.25,0.00019506,2]
[373448268,1753013477369,-480.0,0.00019506,2]
[373448269,1753013477379,-680.76,0.00019506,2]
[373448270,1753013477389,-480.0,0.00019506,2]
[373448271,1753013477398,-480.0,0.00019506,2]
[373448272,1753013477408,-480.0,0.00019506,2]
[373448273,1753013477418,-480.0,0.00019506,2]
[373448274,1753013477427,-497.77,0.00019506,2]
[373448275,1753013477437,-480.0,0.00019506,2]
[373448276,1753013477446,-427.84675825,0.00019506,2]
[373448277,1753013477456,-480.0,0.00019506,2]
[373448278,1753013477466,-480.0,0.00019506,2]
[373448279,1753013477475,-480.0,0.00019506,2]
[373448280,1753013477485,-889.11,0.00019506,2]
[373448281,1753013477496,-480.0,0.00019506,2]
[373448282,1753013477505,-480.0,0.00019506,2]
[373448283,1753013477515,-480.0,0.00019506,2]
[373448284,1753013477524,-480.0,0.00019506,2]
[373448285,1753013477533,-321.16601618,0.00019506,2]
[373448286,1753013477543,-609.19,0.00019506,2]
[373448287,1753013477553,-828.45,0.00019506,2]
[373448288,1753013477563,-480.0,0.00019506,2]
[373448289,1753013477572,-703.8,0.00019506,2]
[373448290,1753013477582,-480.0,0.00019506,2]
[373448291,1753013477592,-480.0,0.00019506,2]
[373448292,1753013477602,-480.0,0.00019506,2]
[373448293,1753013477611,-480.0,0.00019506,2]
[373448294,1753013477621,-480.0,0.00019506,2]
[373448295,1753013477631,-480.0,0.00019506,2]
[373448296,1753013477641,-1244.587968,0.00019506,2]
[373448297,1753013477651,-480.0,0.00019506,2]
[373448298,1753013477660,-480.0,0.00019506,2]
[373448299,1753013477669,-249.699544,0.00019506,2]
[373448300,1753013477678,-249.699544,0.00019506,2]
[373448301,1753013477688,-675.3,0.00019506,2]
[373448302,1753013477697,-1244.587968,0.00019506,2]
[373448303,1753013477708,-480.0,0.00019506,2]
[373448304,1753013477717,-249.699544,0.00019506,2]
[373448305,1753013477727,-480.0,0.00019506,2]
[373448306,1753013477736,-249.699544,0.00019506,2]
[373448307,1753013477745,-586.98,0.00019506,2]
[373448308,1753013477766,-480.0,0.00019506,2]
[373448309,1753013477781,-480.0,0.00019506,2]
[373448310,1753013477796,-1902.48,0.00019506,2]
[373448311,1753013477813,-979.4,0.00019506,2]
[373448312,1753013477830,-292.8255524,0.00019506,2]
[373448313,1753013477844,-480.0,0.00019506,2]
[373448314,1753013477856,-892.2,0.00019506,2]
[373448315,1753013477873,-994.27,0.00019506,2]
[373448316,1753013477889,-151.0,0.00019506,2]
[373448317,1753013477906,-480.0,0.00019506,2]
[373448318,1753013477924,-151.0,0.00019506,2]
[373448319,1753013477940,-587.05,0.00019506,2]
[373448320,1753013477956,-480.0,0.00019506,2]
[373448321,1753013477973,-986.19,0.00019506,2]
[373448322,1753013477991,-943.03,0.00019506,2]
[373448323,1753013478005,-1047.81,0.00019506,2]
[373448324,1753013478017,-545.89,0.00019506,2]
[373448325,1753013478034,-1406.38,0.00019506,2]
[373448326,1753013478048,-480.0,0.00019506,2]
[373448327,1753013478060,-480.0,0.00019506,2]
[373448328,1753013478077,-337.18824621,0.00019506,2]
[373448329,1753013478091,-685.54,0.00019506,2]
[373448330,1753013478106,-480.0,0.00019506,2]
[373448331,1753013478120,-527.06,0.00019506,2]
[373448332,1753013478135,-1515.730714,0.00019506,2]
[373448333,1753013478150,-480.0,0.00019506,2]
[373448334,1753013478164,-480.0,0.00019506,2]
[373448335,1753013478179,-480.0,0.00019506,2]
[373448336,1753013478193,-480.0,0.00019506,2]
[373448337,1753013478208,-1778.936356,0.00019506,2]
[373448338,1753013478222,-480.0,0.00019506,2]
[373448339,1753013478239,-480.0,0.00019506,2]
[373448340,1753013478253,-378.055051,0.00019506,2]
[373448341,1753013478270,-480.0,0.00019506,2]
[373448342,1753013478284,-1833.238425,0.00019506,2]
[373448343,1753013478298,-4173.55,0.00019506,2]
[373448344,1753013478314,-480.0,0.00019506,2]
[373448345,1753013478328,-480.0,0.00019506,2]
[373448346,1753013478342,-1739.85,0.00019506,2]
[373448347,1753013478356,-378.055051,0.00019506,2]
[373448348,1753013478369,-480.0,0.00019506,2]
[373448349,1753013478383,-480.0,0.00019506,2]
[373448350,1753013478397,-1625.1,0.00019506,2]
[373448351,1753013478411,-480.0,0.00019506,2]
[373448352,1753013478425,-480.0,0.00019506,2]
[373448353,1753013478439,-512.26070747,0.00019506,2]
[373448354,1753013478452,-480.0,0.00019506,2]
[373448355,1753013478467,-480.0,0.00019506,2]
[373448356,1753013478481,-824.79,0.00019506,2]
[373448357,1753013478494,-480.0,0.00019506,2]
[373448358,1753013478508,-566.57,0.00019506,2]
[373448359,1753013478521,-634.94,0.00019506,2]
[373448360,1753013478535,-4020.73,0.00019506,2]
[373448361,1753013478548,-848.58,0.00019506,2]
[373448362,1753013478561,-677.06,0.00019506,2]
[373448363,1753013478575,-480.0,0.00019506,2]
[373448364,1753013478588,-480.0,0.00019506,2]
[373448365,1753013478603,-480.0,0.00019506,2]
[373448366,1753013478616,-272.6989796,0.00019506,2]
[373448367,1753013478630,-480.0,0.00019506,2]
[373448368,1753013478642,-480.0,0.00019506,2]
[373448369,1753013478656,-480.0,0.00019506,2]
[373448370,1753013478669,-184.848733,0.00019506,2]
[373448371,1753013478683,-480.0,0.00019506,2]
[373448372,1753013478696,-184.848733,0.00019506,2]
[373448373,1753013478710,-480.0,0.00019506,2]
[373448374,1753013478723,-736.11,0.00019506,2]
[373448375,1753013478737,-480.0,0.00019506,2]
[373448376,1753013478750,-1000.0,0.00019506,2]
[373448377,1753013478764,-1960.09,0.00019506,2]
[373448378,1753013478777,-731.9,0.00019506,2]
[373448379,1753013478791,-1492.33,0.00019506,2]
[373448380,1753013478803,-1670.752502,0.00019506,2]
[373448381,1753013478816,-1670.752502,0.00019506,2]
[373448382,1753013478830,-480.0,0.00019506,2]
[373448383,1753013478844,-151.0,0.00019506,2]
[373448384,1753013478857,-480.0,0.00019506,2]
[373448385,1753013478871,-480.0,0.00019506,2]
[373448386,1753013478889,-725.75,0.00019506,2]
[373448387,1753013478902,-1670.752502,0.00019506,2]
[373448388,1753013478916,-480.0,0.00019506,2]
[373448389,1753013478930,-1670.752502,0.00019506,2]
[373448390,1753013478943,-772.64,0.00019506,2]
[373448391,1753013478956,-506.65,0.00019506,2]
[373448392,1753013478970,-1098.6,0.00019506,2]
[373448393,1753013478983,-480.0,0.00019506,2]
[373448394,1753013478996,-1030.7,0.00019506,2]
[373448395,1753013479009,-1312.22,0.00019506,2]
[373448396,1753013479023,-1191.66,0.00019506,2]
[373448397,1753013479036,-2774.45,0.00019506,2]
[373448398,1753013479050,-308.13008817,0.00019506,2]
[373448399,1753013479064,-493.25536423,0.00019506,2]
[373448400,1753013479077,-480.0,0.00019506,2]
[373448401,1753013479091,-866.31,0.00019506,2]
[373448402,1753013479106,-480.0,0.00019506,2]
[373448403,1753013479120,-480.0,0.00019506,2]
[373448404,1753013479133,-480.56,0.00019506,2]
[373448405,1753013479147,-480.0,0.00019506,2]
[373448406,1753013479162,-480.0,0.00019506,2]
[373448407,1753013479176,-157.463796,0.00019506,2]
[373448408,1753013479189,-151.0,0.00019506,2]
[373448409,1753013479204,-3797.56,0.00019506,2]
[373448410,1753013479219,-480.0,0.00019506,2]
[373448411,1753013479235,-151.0,0.00019506,2]
[373448412,1753013479249,-480.0,0.00019506,2]
[373448413,1753013479263,-480.0,0.00019506,2]
[373448414,1753013479277,-480.0,0.00019506,2]
[373448415,1753013479291,-1643.95,0.00019506,2]
[373448416,1753013479307,-880.77,0.00019506,2]
[373448417,1753013479320,-480.0,0.00019506,2]
[373448418,1753013479334,-480.0,0.00019506,2]
[373448419,1753013479348,-519.95,0.00019506,2]
[373448420,1753013479361,-480.0,0.00019506,2]
[373448421,1753013479374,-781.18,0.00019506,2]
[373448422,1753013479387,-480.0,0.00019506,2]
[373448423,1753013479400,-650.82,0.00019506,2]
[373448424,1753013479413,-1228.87,0.00019506,2]
[373448425,1753013479425,-480.0,0.00019506,2]
[373448426,1753013479438,-480.0,0.00019506,2]
[373448427,1753013479452,-1321.79,0.00019506,2]
[373448428,1753013479466,-480.0,0.00019506,2]
[373448429,1753013479478,-480.0,0.00019506,2]
[373448430,1753013479492,-480.0,0.00019506,2]
[373448431,1753013479505,-2085.45,0.00019506,2]
[373448432,1753013479518,-3694.26,0.00019506,2]
[373448433,1753013479532,-497.50589437,0.00019506,2]
[373448434,1753013479546,-819.47,0.00019506,2]
[373448435,1753013479559,-480.0,0.00019506,2]
[373448436,1753013479573,-480.0,0.00019506,2]
[373448437,1753013479587,-480.0,0.00019506,2]
[373448438,1753013479601,-480.0,0.00019506,2]
[373448439,1753013479615,-480.0,0.00019506,2]
[373448440,1753013479628,-480.0,0.00019506,2]
[373448441,1753013479642,-5917.35,0.00019506,2]
[373448442,1753013479655,-480.0,0.00019506,2]
[373448443,1753013479667,-1898.44,0.00019506,2]
[373448444,1753013479681,-480.0,0.00019506,2]
[373448445,1753013479693,-480.0,0.00019506,2]
[373448446,1753013479708,-809.54,0.00019506,2]
[373448447,1753013479722,-480.0,0.00019506,2]
[373448448,1753013479735,-1485.49,0.00019506,2]
[373448449,1753013479747,-480.0,0.00019506,2]
[373448450,1753013479761,-818.6,0.00019506,2]
[373448451,1753013479773,-480.0,0.00019506,2]
[373448452,1753013479785,-851.55,0.00019506,2]
[373448453,1753013479799,-578.5,0.00019506,2]
[373448454,1753013479814,-4649.23,0.00019506,2]
[373448455,1753013480088,-330.11837218,0.00019506,2]
[373448456,1753013480109,-1728.42,0.00019506,2]
[373448457,1753013480118,-480.0,0.00019506,2]
[373448458,1753013480128,-480.0,0.00019506,2]
[373448459,1753013480137,-480.0,0.00019506,2]
[373448460,1753013480146,-480.0,0.00019506,2]
[373448461,1753013480155,-2001.53,0.00019506,2]
[373448462,1753013480165,-480.0,0.00019506,2]
[373448463,1753013480174,-151.0,0.00019506,2]
[373448464,1753013480183,-480.0,0.00019506,2]
[373448465,1753013480193,-2078.86,0.00019506,2]
[373448466,1753013480202,-151.0,0.00019506,2]
[373448467,1753013480211,-480.0,0.00019506,2]
[373448468,1753013480224,-3754.87,0.00019506,2]
[373448469,1753013480234,-1020.01,0.00019506,2]
[373448470,1753013480243,-151.0,0.00019506,2]
[373448471,1753013480252,-151.0,0.00019506,2]
[373448472,1753013480262,-170.33425,0.00019506,2]
[373448473,1753013480272,-151.0,0.00019506,2]
[373448474,1753013480281,-480.0,0.00019506,2]
[373448475,1753013480292,-480.0,0.00019506,2]
[373448476,1753013480302,-1678.08,0.00019506,2]
[373448477,1753013480312,-480.0,0.00019506,2]
[373448478,1753013480321,-1895.18,0.00019506,2]
[373448479,1753013480330,-6637.19,0.00019506,2]
[373448480,1753013480340,-1813.96,0.00019506,2]
[373448481,1753013480351,-151.0,0.00019506,2]
[373448482,1753013480360,-151.0,0.00019506,2]
[373448483,1753013480369,-7136.14,0.00019506,2]
[373448484,1753013480378,-480.0,0.00019506,2]
[373448485,1753013480388,-5729.04,0.00019506,2]
[373448486,1753013480398,-1008.27,0.00019506,2]
[373448487,1753013480408,-480.0,0.00019506,2]
[373448488,1753013480417,-953.76,0.00019506,2]
[373448489,1753013480426,-480.0,0.00019506,2]
[373448490,1753013480435,-480.0,0.00019506,2]
[373448491,1753013480445,-480.0,0.00019506,2]
[373448492,1753013480454,-480.0,0.00019506,2]
[373448493,1753013480464,-1994.7,0.00019506,2]
[373448494,1753013480473,-480.0,0.00019506,2]
[373448495,1753013480482,-1969.3,0.00019506,2]
[373448496,1753013480491,-480.0,0.00019506,2]
[373448497,1753013480501,-1429.26,0.00019506,2]
[373448498,1753013480510,-2702.34,0.00019506,2]
[373448499,1753013480519,-1064.74,0.00019506,2]
[373448500,1753013480529,-480.0,0.00019506,2]
[373448501,1753013480539,-960.16,0.00019506,2]
[373448502,1753013480548,-210.129398,0.00019506,2]
[373448503,1753013480557,-1003.77,0.00019506,2]
[373448504,1753013480567,-480.0,0.00019506,2]
[373448505,1753013480576,-738.76,0.00019506,2]
[373448506,1753013480586,-2552.29,0.00019506,2]
[373448507,1753013480596,-1832.72,0.00019506,2]
[373448508,1753013480605,-878.37,0.00019506,2]
[373448509,1753013480614,-480.0,0.00019506,2]
[373448510,1753013480624,-1226.69,0.00019506,2]
[373448511,1753013480633,-789.12,0.00019506,2]
[373448512,1753013480642,-1125.25,0.00019506,2]
[373448513,1753013480652,-1848.72,0.00019506,2]
[373448514,1753013480662,-480.0,0.00019506,2]
[373448515,1753013480671,-1082.7,0.00019506,2]
[373448516,1753013480681,-2495.08,0.00019506,2]
[373448517,1753013480690,-1246.44,0.00019506,2]
[373448518,1753013480701,-1021.31,0.00019506,2]
[373448519,1753013480710,-635.54,0.00019506,2]
[373448520,1753013480720,-2763.18,0.00019506,2]
[373448521,1753013480731,-480.0,0.00019506,2]
[373448522,1753013480740,-625.41,0.00019506,2]
[373448523,1753013480750,-480.0,0.00019506,2]
[373448524,1753013480759,-1804.88,0.00019506,2]
[373448525,1753013480768,-480.0,0.00019506,2]
[373448526,1753013480777,-151.0,0.00019506,2]
[373448527,1753013480787,-1538.55,0.00019506,2]
[373448528,1753013480795,-515.66,0.00019506,2]
[373448529,1753013480805,-480.0,0.00019506,2]
[373448530,1753013480815,-480.0,0.00019506,2]
[373448531,1753013480825,-9261.19,0.00019506,2]
[373448532,1753013480834,-480.0,0.00019506,2]
[373448533,1753013480847,-1355.52,0.00019506,2]
[373448534,1753013480857,-480.0,0.00019506,2]
[373448535,1753013480867,-1394.78,0.00019506,2]
[373448536,1753013480876,-4234.24,0.00019506,2]
[373448537,1753013480886,-895.67,0.00019506,2]
[373448538,1753013480896,-480.0,0.00019506,2]
[373448539,1753013480908,-3560.8,0.00019506,2]
[373448540,1753013480919,-730.7,0.00019506,2]
[373448541,1753013480928,-868.35,0.00019506,2]
[373448542,1753013480938,-809.54,0.00019506,2]
[373448543,1753013480948,-1757.67,0.00019506,2]
[373448544,1753013480957,-1017.17,0.00019506,2]
[373448545,1753013480966,-759.65,0.00019506,2]
[373448546,1753013480975,-35248.29,0.00019506,2]
[373448547,1753013480984,-1021.35,0.00019506,2]
[373448548,1753013480993,-480.0,0.00019506,2]
[373448549,1753013481002,-480.0,0.00019506,2]
[373448550,1753013481011,-1244.45,0.00019506,2]
[373448551,1753013481020,-766.3,0.00019506,2]
[373448552,1753013481029,-480.0,0.00019506,2]
[373448553,1753013481039,-3481.18,0.00019506,2]
[373448554,1753013481048,-2045.37,0.00019506,2]
[373448555,1753013481057,-2165.44,0.00019506,2]
[373448556,1753013481066,-1156.3,0.00019506,2]
[373448557,1753013481075,-480.0,0.00019506,2]
[373448558,1753013481085,-709.15,0.00019506,2]
[373448559,1753013481095,-480.0,0.00019506,2]
[373448560,1753013481105,-788.88,0.00019506,2]
[373448561,1753013481114,-5121.82,0.00019506,2]
[373448562,1753013481124,-1705.55,0.00019506,2]
[373448563,1753013481133,-700.45,0.00019506,2]
[373448564,1753013481142,-1115.11,0.00019506,2]
[373448565,1753013481151,-732.11,0.00019506,2]
[373448566,1753013481161,-1820.86,0.00019506,2]
[373448567,1753013481170,-1603.92,0.00019506,2]
[373448568,1753013481179,-480.0,0.00019506,2]
[373448569,1753013481189,-2291.6,0.00019506,2]
[373448570,1753013481198,-1167.46,0.00019506,2]
[373448571,1753013481208,-4538.14,0.00019506,2]
[373448572,1753013481218,-402.51701459,0.00019506,2]
[373448573,1753013481231,-480.0,0.00019506,2]
[373448574,1753013481241,-1766.28,0.00019506,2]
[373448575,1753013481250,-1927.52,0.00019506,2]
[373448576,1753013481259,-551.46,0.00019506,2]
[373448577,1753013481269,-851.47,0.00019506,2]
[373448578,1753013481278,-480.0,0.00019506,2]
[373448579,1753013481287,-159.305545,0.00019506,2]
[373448580,1753013481297,-1573.77,0.00019506,2]
[373448581,1753013481308,-159.305545,0.00019506,2]
[373448582,1753013481317,-816.02,0.00019506,2]
[373448583,1753013481327,-2564.67,0.00019506,2]
[373448584,1753013481336,-1319.12,0.00019506,2]
[373448585,1753013481347,-1348.14,0.00019506,2]
[373448586,1753013481355,-159.305545,0.00019506,2]
[373448587,1753013481364,-159.305545,0.00019506,2]
[373448588,1753013481374,-151.0,0.00019506,2]
[373448589,1753013481383,-1121.19,0.00019506,2]
[373448590,1753013481393,-480.0,0.00019506,2]
[373448591,1753013481403,-952.71,0.00019506,2]
[373448592,1753013481412,-480.0,0.00019506,2]
[373448593,1753013481421,-2773.41,0.00019506,2]
[373448594,1753013481430,-295.33893025,0.00019506,2]
[373448595,1753013481439,-480.0,0.00019506,2]
[373448596,1753013481448,-1758.02,0.00019506,2]
[373448597,1753013481457,-480.0,0.00019506,2]
[373448598,1753013481467,-1723.5,0.00019506,2]
[373448599,1753013481476,-1015.04,0.00019506,2]
[373448600,1753013481485,-1539.49,0.00019506,2]
[373448601,1753013481494,-480.0,0.00019506,2]
[373448602,1753013481503,-813.68,0.00019506,2]
[373448603,1753013481512,-1361.52,0.00019506,2]
[373448604,1753013481521,-1434.25,0.00019506,2]
[373448605,1753013481531,-480.0,0.00019506,2]
[373448606,1753013481540,-6436.22,0.00019506,2]
[373448607,1753013481549,-483.29542208,0.00019506,2]
[373448608,1753013481559,-1549.35,0.00019506,2]
[373448609,1753013481568,-1003.73,0.00019506,2]
[373448610,1753013481577,-2525.33,0.00019506,2]
[373448611,1753013481586,-1508.86,0.00019506,2]
[373448612,1753013481597,-480.0,0.00019506,2]
[373448613,1753013481606,-717.59,0.00019506,2]
[373448614,1753013481616,-1095.0,0.00019506,2]
[373448615,1753013481625,-2638.56,0.00019506,2]
[373448616,1753013481635,-1701.08,0.00019506,2]
[373448617,1753013481644,-1222.94,0.00019506,2]
[373448618,1753013481654,-643.579262,0.00019506,2]
[373448619,1753013481663,-619.46,0.00019506,2]
[373448620,1753013481673,-905.54,0.00019506,2]
[373448621,1753013481682,-480.0,0.00019506,2]
[373448622,1753013481691,-1715.41,0.00019506,2]
[373448623,1753013481701,-643.579262,0.00019506,2]
[373448624,1753013481710,-480.0,0.00019506,2]
[373448625,1753013481719,-3688.76,0.00019506,2]
[373448626,1753013481728,-2526.18,0.00019506,2]
[373448627,1753013481738,-1135.56,0.00019506,2]
[373448628,1753013481748,-1150.34,0.00019506,2]
[373448629,1753013481758,-2906.2,0.00019506,2]
[373448630,1753013481767,-480.0,0.00019506,2]
[373448631,1753013481777,-480.0,0.00019506,2]
[373448632,1753013481787,-1674.29,0.00019506,2]
[373448633,1753013481796,-533.04,0.00019506,2]
[373448634,1753013481805,-370.55013218,0.00019506,2]
[373448635,1753013481815,-2332.93,0.00019506,2]
[373448636,1753013481824,-755.65,0.00019506,2]
[373448637,1753013481833,-1951.81,0.00019506,2]
[373448638,1753013481843,-5397.35,0.00019506,2]
[373448639,1753013481854,-480.0,0.00019506,2]
[373448640,1753013481863,-1566.95,0.00019506,2]
[373448641,1753013481873,-1606.18,0.00019506,2]
[373448642,1753013481882,-480.0,0.00019506,2]
[373448643,1753013481891,-3089.34,0.00019506,2]
[373448644,1753013481900,-811.76,0.00019506,2]
[373448645,1753013481909,-464.8,0.00019507,2]
[373448646,1753013481919,-500.0,0.00019573,2]
[373448647,1753013481928,-34514.4,0.00019585,2]
[373448648,1753013481937,-242.0,0.00019592,2]
[373448649,1753013481947,-934.38,0.000196,2]
[373448650,1753013481956,-622.43091078,0.000196,2]
[373448651,1753013481965,-1000.0,0.000196,2]
[373448652,1753013481975,-2463.23,0.000196,2]
[373448653,1753013481984,-5095.48,0.000196,2]
[373448654,1753013481993,-1204.94,0.000196,2]
[373448655,1753013482003,-480.0,0.000196,2]
[373448656,1753013482012,-1452.33,0.000196,2]
[373448657,1753013482022,-1051.97,0.000196,2]
[373448658,1753013482031,-344.98328396,0.000196,2]
[373448659,1753013482041,-1724.16,0.000196,2]
[373448660,1753013482052,-541.23,0.000196,2]
[373448661,1753013482062,-242.0,0.0001961,2]
[373448662,1753013482072,-1644.26787085,0.00019614,2]
[373448663,1753013482083,-291.946926,0.00019615,2]
[373448664,1753013482092,-291.946926,0.00019615,2]
[373448665,1753013482102,-210.66,0.00019615,2]
[373448666,1753013482111,-480.0,0.00019616,2]
[373448667,1753013482120,-151.0,0.00019616,2]
[373448668,1753013482130,-151.0,0.00019616,2]
[373448669,1753013482139,-168.60737639,0.00019616,2]
[373448670,1753013482149,-480.0,0.00019616,2]
[373448671,1753013482159,-168.56525519,0.00019616,2]
[373448672,1753013482169,-480.0,0.00019616,2]
[373448673,1753013482178,-151.0,0.00019616,2]
[373448674,1753013482187,-151.0,0.00019616,2]
[373448675,1753013482196,-480.0,0.00019616,2]
[373448676,1753013482206,-528.17,0.00019616,2]
[373448677,1753013482215,-557.08818039,0.00019616,2]
[373448678,1753013482226,-480.0,0.00019616,2]
[373448679,1753013482236,-151.0,0.00019616,2]
[373448680,1753013482245,-151.0,0.00019616,2]
[373448681,1753013482256,-480.0,0.00019616,2]
[373448682,1753013482266,-224.63250937,0.00019616,2]
[373448683,1753013482275,-151.0,0.00019616,2]
[373448684,1753013482284,-151.0,0.00019616,2]
[373448685,1753013482293,-768.09,0.00019616,2]
[373448686,1753013482303,-480.0,0.00019616,2]
[373448687,1753013482312,-480.0,0.00019616,2]
[373448688,1753013482321,-480.0,0.00019616,2]
[373448689,1753013482330,-436.08950157,0.00019616,2]
[373448690,1753013482339,-480.0,0.00019616,2]
[373448691,1753013482349,-480.0,0.00019616,2]
[373448692,1753013482358,-169.631124,0.00019616,2]
[373448693,1753013482367,-213.03175313,0.00019616,2]
[373448694,1753013482376,-480.0,0.00019616,2]
[373448695,1753013482385,-472.2567451,0.00019616,2]
[373448696,1753013482395,-480.0,0.00019616,2]
[373448697,1753013482405,-433.80855275,0.00019616,2]
[373448698,1753013482414,-151.0,0.00019616,2]
[373448699,1753013482423,-151.0,0.00019616,2]
[373448700,1753013482432,-480.0,0.00019616,2]
[373448701,1753013482442,-480.0,0.00019616,2]
[373448702,1753013482451,-480.0,0.00019616,2]
[373448703,1753013482461,-151.0,0.00019616,2]
[373448704,1753013482471,-717.14,0.00019616,2]
[373448705,1753013482480,-480.0,0.00019616,2]
[373448706,1753013482490,-514.87,0.00019616,2]
[373448707,1753013482499,-151.0,0.00019616,2]
[373448708,1753013482508,-480.0,0.00019616,2]
[373448709,1753013482517,-480.0,0.00019616,2]
[373448710,1753013482526,-3843.99,0.00019616,2]
[373448711,1753013482535,-480.0,0.00019616,2]
[373448712,1753013482544,-539.15,0.00019616,2]
[373448713,1753013482554,-480.0,0.00019616,2]
[373448714,1753013482563,-1523.74,0.00019616,2]
[373448715,1753013482572,-608.0521229,0.00019616,2]
[373448716,1753013482581,-480.0,0.00019616,2]
[373448717,1753013482590,-151.0,0.00019616,2]
[373448718,1753013482599,-151.0,0.00019616,2]
[373448719,1753013482608,-480.0,0.00019616,2]
[373448720,1753013482617,-480.0,0.00019616,2]
[373448721,1753013482626,-1042.47,0.00019616,2]
[373448722,1753013482635,-480.0,0.00019616,2]
[373448723,1753013482644,-480.0,0.00019616,2]
[373448724,1753013482653,-702.1,0.00019616,2]
[373448725,1753013482663,-151.0,0.00019616,2]
[373448726,1753013482672,-151.0,0.00019616,2]
[373448727,1753013482681,-772.87,0.00019616,2]
[373448728,1753013482690,-168.64800688,0.00019616,2]
[373448729,1753013482699,-910.08,0.00019616,2]
[373448730,1753013482708,-2302.17,0.00019616,2]
[373448731,1753013482718,-480.0,0.00019616,2]
[373448732,1753013482727,-151.0,0.00019616,2]
[373448733,1753013482736,-284.84403741,0.00019616,2]
[373448734,1753013482745,-480.0,0.00019616,2]
[373448735,1753013482754,-480.0,0.00019616,2]
[373448736,1753013482763,-778.06,0.00019616,2]
[373448737,1753013482773,-555.99,0.00019616,2]
[373448738,1753013482782,-480.0,0.00019616,2]
[373448739,1753013482791,-151.0,0.00019616,2]
[373448740,1753013482802,-480.0,0.00019616,2]
[373448741,1753013482811,-151.0,0.00019616,2]
[373448742,1753013482821,-151.0,0.00019616,2]
[373448743,1753013482831,-500.02,0.00019616,2]
[373448744,1753013482840,-470.69253372,0.00019616,2]